Cogmind - Beta 14 @@@ ROGUE MODE // 2024.09.13 @ 18:59:23 Player: ZarZap Result: Destroyed by G-47 Trooper with Particle Gun Performance ------------- Evolutions (1) 500 Regions Visited (3) 600 Robots Destroyed (24) 120 Value Destroyed (580) 580 Prototype IDs (0) 0 Alien Tech Used (0) 0 Bonus (0) 0 TOTAL SCORE: 1800 Bonus ------- None Cogmind --------- Core Integrity 0/400 Matter 236/300 Energy 125/125 System Corruption 0% Temperature Cool (9) Movement Rolling (80) Location -9/Materials Parts ------- > --- POWER (1) -------- Light Ion Engine > --- PROPULSION (3) --- Wheel Wheel Wheel > --- UTILITY (3) ------ Improved Heat Sink Small Storage Unit Visual Processing Unit > --- WEAPON (2) ------- Light Assault Rifle > --- INVENTORY (8) ---- Light Ion Engine Wheel Wheel Wheel Compact Wheel Sensor Array Transport Network Coupler Peak State ------------ > --- POWER ------------ Light Ion Engine > --- PROPULSION ------- Wheel Wheel Wheel > --- UTILITY ---------- Improved Heat Sink Small Storage Unit Visual Processing Unit > --- WEAPON ----------- Particle Gun Light Assault Rifle > --- INVENTORY -------- Light Ion Engine Wheel Wheel Wheel Compact Wheel Sensor Array Transport Network Coupler [Rating: 13] Favorites ----------- Power Ion Engine Engine Ion Engine Propulsion Wheel Wheel Wheel Utility Small Storage Unit Device Sensor Array Storage Small Storage Unit Processor Visual Processing Unit Protection Weapon Shielding Weapon Assault Rifle Energy Gun Medium Laser Ballistic Gun Assault Rifle Build | -11 -10 -10 -9 ------- Run | Yrd Mat Min Mat Slots Evolved 2 | . . . 2 Power . | . . . . Propulsion 1 | . . . 1 Utility 1 | . . . 1 Weapon . | . . . . Parts Attached 27 | 7 1 1 18 Power 2 | 1 . . 1 Engine 2 | 1 . . 1 Core . | . . . . Reactor . | . . . . Propulsion 11 | 2 . 1 8 Treads . | . . . . Leg . | . . . . Wheel 11 | 2 . 1 8 Hover . | . . . . Flight . | . . . . Utility 5 | 1 . . 4 Device 2 | . . . 2 Storage 1 | 1 . . . Processor 1 | . . . 1 Hackware . | . . . . Protection 1 | . . . 1 Artifact . | . . . . Weapon 9 | 3 1 . 5 Energy Gun 6 | 1 1 . 4 Energy Cannon . | . . . . Ballistic Gun 3 | 2 . . 1 Ballistic Cannon . | . . . . Launcher . | . . . . Special Weapon . | . . . . Impact Weapon . | . . . . Slashing Weapon . | . . . . Piercing Weapon . | . . . . Special Melee Weapon . | . . . . Unidentified Prototypes . | . . . . Parts Lost 8 | . . . 8 Power 1 | . . . 1 Propulsion 3 | . . . 3 Utility . | . . . . Weapon 4 | . . . 4 Highest Loss Streak 5 | . . . 5 To Critical Strikes . | . . . . Average Slot Usage (%) 89 | . 85 85 91 Engine 11 | . 14 14 10 Wheel 29 | . 28 28 29 Device 4 | . . . 5 Storage 11 | . 14 14 11 Processor 6 | . . . 8 Protection 3 | . . . 5 Energy Gun 13 | . 14 14 13 Ballistic Gun 9 | . 14 14 7 Peak Build Rating 13 | 6 6 6 13 Average Rating 8 | 4 6 6 9 On Entrance 4 | . 6 6 6 Naked Turns . | . . . . Heaviest Build 16 | 14 14 14 16 Greatest Support 36 | 20 20 26 36 Greatest Overweight (x) . | . . . . Average Overweight (x) . | . . . . Largest Inventory Capacity 8 | 8 8 8 8 Average Capacity 7 | 7 8 8 8 Most Carried 8 | 2 2 5 8 Average Carried 4 | . 2 4 4 Final Capacity 8 | 8 8 8 8 Final Carried 7 | 2 2 5 7 Class Distribution -------------------- 65% | Mutant 34% | Scavenger-Mutant Dominant Class ---------------- Mutant | -10/Materials Mutant | -10/Mines Scavenger-Mutant | -9/Materials Resources | -11 -10 -10 -9 ----------- Run | Yrd Mat Min Mat Matter Collected 604 | 165 . 129 310 Remotely . | . . . . Salvage Created 807 | . . 60 747 Parts 50 | . . 8 42 Haulers Intercepted . | . . . . Recyclers Shooed 1 | . . 1 . Parts Field Recycled . | . . . . Retrieved Matter . | . . . . Parts Self-Destructed . | . . . . Prevented . | . . . . Kills | -11 -10 -10 -9 ------- Run | Yrd Mat Min Mat Combat Hostiles Destroyed 16 | . . 3 13 Guns 16 | . . 3 13 Classes Destroyed 6 | . . 2 4 Worker 4 | . . 1 3 Recycler 1 | . . . 1 Watcher 3 | . . . 3 Swarmer 3 | . . 3 . Grunt 12 | . . . 12 Sentry 1 | . . . 1 Best Kill Streak 6 | . . 3 6 Combat Bots Only 3 | . . 3 3 Max Kills in Single Turn 1 | . . 1 1 Gunslinging . | . . . . Exploded . | . . . . Melee . | . . . . Uniques/NPCs Destroyed . | . . . . Combat | -11 -10 -10 -9 -------- Run | Yrd Mat Min Mat Hostile Shots Fired 110 | . . 12 98 Missed 29 | . . 6 23 Damage Taken 1098 | . . 48 1050 Core 412 | . . 6 406 Absorbed by Shields . | . . . . Redirected to Shielding 30 | . . . 30 Core Remaining (%) 98 | 100 . 97 . Volleys Fired 80 | . . 10 70 Largest 2 | . . 2 2 Hottest 130 | . . 70 130 Shots Fired 141 | . . 20 121 Gun 141 | . . 20 121 Cannon . | . . . . Launcher . | . . . . Special . | . . . . Kinetic 53 | . . 10 43 Thermal 88 | . . 10 78 Explosive . | . . . . Electromagnetic . | . . . . Robot Hit Streak 21 | . . 4 21 Robot Miss Streak 3 | . . 2 3 Penetration Max . | . . . . Secondary Targets . | . . . . Shots Hit Robots 103 | . . 11 92 Core Hits 41 | . . 5 36 Critical Kills . | . . . . Critical Parts Destroyed . | . . . . Critical Strikes 4 | . . . 4 Burn 4 | . . . 4 Melee Attacks . | . . . . Impact . | . . . . Slashing . | . . . . Piercing . | . . . . Sneak Attacks . | . . . . Combat Hostiles . | . . . . Follow-up Attacks . | . . . . Damage Inflicted 1416 | . . 142 1274 Guns 1411 | . . 137 1274 Cannons . | . . . . Explosions . | . . . . Melee . | . . . . Ramming 5 | . . 5 . Kinetic 426 | . . 38 388 Thermal 985 | . . 99 886 Explosive . | . . . . Electromagnetic . | . . . . Impact . | . . . . Slashing . | . . . . Piercing . | . . . . Highest Corruption . | . . . . Average Corruption . | . . . . Corruption Purged . | . . . . Corruption Blocked . | . . . . Overload Shots . | . . . . Overflow Damage . | . . . . Projectiles . | . . . . Explosions . | . . . . Melee . | . . . . Knockbacks . | . . . . Impact . | . . . . Kinetic . | . . . . Secondary . | . . . . Self-Inflicted Damage 2 | . . 2 . Shots . | . . . . Rammed 2 | . . 2 . Targets Rammed 2 | . . 2 . Kicked . | . . . . Crushed . | . . . . Highest Temperature 543 | . . 54 543 Average Temperature 128 | . . 20 144 Received Heat Transfer 528 | . . . 528 Effects 12 | . . . 12 Shutdowns 1 | . . . 1 Interference 4 | . . . 4 Matter Decay 2 | . . . 2 Damage (major) 4 | . . . 4 Damage (core) 1 | . . . 1 Siege Activations . | . . . . Robots Corrupted . | . . . . Combat Hostiles . | . . . . Parts Fried . | . . . . Impact Corruptions . | . . . . Robots Melted . | . . . . Combat Hostiles . | . . . . Parts Melted 9 | . . . 9 Heat Transferred 2886 | . . 296 2590 Parts Sabotaged . | . . . . Parts Stolen . | . . . . Parts Stripped . | . . . . Power Chain Reactions . | . . . . Alert | -11 -10 -10 -9 ------- Run | Yrd Mat Min Mat Peak Influence 365 | . . 75 365 Initial 29 | . . . 29 Average 118 | . . 38 164 Maximum Alert Level 1 | . . . 1 Low Security (%) 79 | 100 100 100 68 Level 1 20 | . . . 31 Level 2 . | . . . . Level 3 . | . . . . Level 4 . | . . . . Level 5 . | . . . . High Security . | . . . . Max Security . | . . . . Squads Dispatched 1 | . . . 1 Investigation . | . . . . Extermination . | . . . . Reinforcement 1 | . . . 1 Assault . | . . . . Garrison . | . . . . Intercept . | . . . . Searches Triggered . | . . . . Construction Impeded . | . . . . Haulers Reinforced . | . . . . Active Scanning Responses . | . . . . Cargo Convoy Interrupts . | . . . . Stealth | -11 -10 -10 -9 --------- Run | Yrd Mat Min Mat Distress Signals 1 | . . . 1 Communications Jammed . | . . . . Distress Signals . | . . . . Times Spotted 23 | . . 3 20 Peak Tracking Total 4 | . . 3 4 Tactical Retreats 2 | . . . 2 Traps | -11 -10 -10 -9 ------- Run | Yrd Mat Min Mat Traps Triggered . | . . . . Indirectly . | . . . . Trap Hack Attempts . | . . . . Triggered . | . . . . Disarmed . | . . . . Reprogrammed . | . . . . Reused . | . . . . Traps Extracted . | . . . . Installed . | . . . . Triggered . | . . . . Machines | -11 -10 -10 -9 ---------- Run | Yrd Mat Min Mat Machines Disabled . | . . . . Max in Single Turn . | . . . . Machines Repaired . | . . . . Machines Dismantled . | . . . . Machines Sabotaged . | . . . . Overloaded Fab Kills . | . . . . Hacking | -11 -10 -10 -9 --------- Run | Yrd Mat Min Mat Machines Accessed . | . . . . Terminals . | . . . . Fabricators . | . . . . Repair Stations . | . . . . Recycling Units . | . . . . Scanalyzers . | . . . . Garrison Access . | . . . . Total Hacks . | . . . . Successful . | . . . . Failed . | . . . . Catastrophic . | . . . . Database Lockouts . | . . . . Manual 2 | . 2 . . Terminals . | . . . . Fabricators . | . . . . Repair Stations . | . . . . Recycling Units . | . . . . Scanalyzers . | . . . . Garrison Access . | . . . . Terminal Hacks . | . . . . Fabricator Hacks . | . . . . Repair Station Hacks . | . . . . Recycling Unit Hacks . | . . . . Scanalyzer . | . . . . Garrison Access Hacks . | . . . . Unauthorized Hacks . | . . . . Terminals . | . . . . Fabricators . | . . . . Repair Stations . | . . . . Recycling Units . | . . . . Scanalyzers . | . . . . Garrison Access . | . . . . Data Cores Recovered . | . . . . Used . | . . . . Hacking Detections 1 | . 1 . . Full Trace Events . | . . . . Feedback Events . | . . . . Feedback Blocked . | . . . . Robot Schematics Acquired . | . . . . Robots Built . | . . . . Authchips . | . . . . Time . | . . . . Total Robot Build Rating . | . . . . Part Schematics Acquired . | . . . . Parts Built . | . . . . Authchips . | . . . . Time . | . . . . Total Part Build Rating . | . . . . Parts Repaired . | . . . . Time . | . . . . Parts Recycled . | . . . . Recycled Matter . | . . . . Retrieved Matter . | . . . . Retrieved Components . | . . . . Parts Scanalyzed . | . . . . Part Schematics Acquired . | . . . . Parts Damaged . | . . . . Bothacking | -11 -10 -10 -9 ------------ Run | Yrd Mat Min Mat Used RIF Installer . | . . . . Robots Hacked . | . . . . Non-combat . | . . . . Combat . | . . . . Robot Hacks Applied . | . . . . Relay Couplers Released . | . . . . Fabnet Peak Effective % . | . . . . Robots Rewired . | . . . . Allies Hacked . | . . . . Hacks Repelled . | . . . . Allies | -11 -10 -10 -9 -------- Run | Yrd Mat Min Mat Total Allies . | . . . . Largest Group . | . . . . Highest-Rated Group . | . . . . Highest-Rated Ally . | . . . . Total Orders . | . . . . Ally Attacks . | . . . . Total Damage . | . . . . Kills . | . . . . Allies Corrupted . | . . . . Allies Melted . | . . . . Intel | -11 -10 -10 -9 ------- Run | Yrd Mat Min Mat Robot Analysis Total . | . . . . Derelict Logs Recovered . | . . . . Drone Launches . | . . . . Drone Recoveries . | . . . . Exploration | -11 -10 -10 -9 ------------- Run | Yrd Mat Min Mat Turns Passed 651 | 42 36 138 435 Spaces Moved 382 | 39 44 111 188 Core 1 | 1 . . . Treads . | . . . . Legs . | . . . . Wheels 381 | 38 44 111 188 Hover . | . . . . Flight . | . . . . Fastest Speed 50 | 50 80 80 80 Average Speed 85 | 79 80 89 86 Slowest Speed 100 | 80 80 90 100 Overloaded Moves . | . . . . Propulsion Burnouts . | . . . . Robots Hopped . | . . . . Cave-ins Triggered . | . . . . Exploration Rate (%) 19 | 3 12 47 17 Regions Visited 3 Branch Regions 1 Pre-discovered Areas . | . . . . Known Exits Taken . | . . . . Unknown Exits Taken 3 | 1 1 1 . Scrap Searched 1 | . . 1 . Spaces Dug . | . . . . Terrain Destroyed . | . . . . Melee . | . . . . Projectile . | . . . . AOE . | . . . . Terrain Rammed . | . . . . Walls Destroyed . | . . . . Machines Disabled . | . . . . Actions | -11 -10 -10 -9 --------- Run | Yrd Mat Min Mat Total 555 | 46 44 129 336 Wait 58 | . . 3 55 Move 379 | 38 43 110 188 Hop . | . . . . Pick Up 7 | 1 . 3 3 Fast Attach 11 | 6 . . 5 Attach 5 | . . . 5 Detach . | . . . . Swap 11 | 1 1 1 8 Drop 2 | . . . 2 Fire 80 | . . 10 70 Melee . | . . . . Ram 2 | . . 2 . Kick . | . . . . Crush . | . . . . Escape Stasis . | . . . . Rewire . | . . . . Trap . | . . . . Miscellaneous . | . . . . Route ------- -11/Scrapyard -10/Materials -10/Mines -9/Materials History --------- Turn | Location | Event 16 | -11/Scrapyard | Discovered new exit (range 15) 43 | -11/Scrapyard | Entered Materials 43 | -10/Materials | Discovered new exit (range 8) 79 | -10/Materials | Entered Mines 206 | -10/Mines | Discovered new exit (range 10) 217 | -10/Mines | Entered Materials 217 | -9/Materials | Evolved 2 slots: Propulsion x1, Utility x1 335 | -9/Materials | Build established: Mutant 543 | -9/Materials | Core integrity fell below 50% 582 | -9/Materials | Core integrity fell below 20% 594 | -9/Materials | Lost 5 parts (1p2n2w) 652 | -9/Materials | Destroyed by G-47 Trooper with Particle Gun Last Messages --------------- 00580_ Overheating: Lgt. Ion Engine damaged (-9). 00581_ Acquired 23 matter. 00581_ R-06 Scavenger collects Aluminum Leg. 00581_ K-01 Serf collects debris. 00582_ Overheating: Core damaged (-68). 00584_ K-01 Serf collects debris. 00585_ Overheating: System interference. 00585_ Particle Gun temporarily disabled. 00585_ K-01 Serf collects debris. 00585_ R-06 Scavenger collects Aluminum Leg. 00588_ K-01 Serf collects debris. 00610_ Acquired Wheel. 00614_ Acquired 12 matter. 00615_ K-01 Serf destroyed. 00617_ K-01 Serf collects debris. 00628_ Acquired 38 matter. 00630_ Particle Gun destroyed. 00638_ Acquired 21 matter. 00640_ Acquired Lgt. Assault Rifle. 00641_ Particle Gun destroyed. Map ----- +----------------------------------------------------+ | ?????????????? """ #????????? | | ??????????????? #????????? | | ???????????????? #????????? | | ????????????????""" #????????? | | ????????????????""" #????????? | | ?????????????????"" #????????? | | ??????????????????? /????????? | | ????????????????????? #????????? | | ??????????????????????? #????????? | | ????????????????????????# #????????? | | ????????????????????????# #????????? | | ????????????????????????# #????????? | | ????????????????????????# #????????? | | ????????????????????????# #????????? | | ????????????????????????#[#????????? | | ????????????????????????#!#????????? | | ????????????????????????#%#????????? | | ????????????????????????#*#????????? | | ????????????????????????#%#????????? | | ??????????????????????###+####?????? | | ??????????????????????#*=%== #?????? | | ??????????????????????#[*[!! #?????? | | ??????????????????????#=!%*! #?????? | | ??????????????????????#%* !* #?????? | | ??????????????????????# [% #?????? | | ??????????????????????# @* #?????? | | ??????????????????###?##g#####?????? | | ????????????????### ####g#?????????? | | ????????????????# # #?????????? | | ????????????????# T # #?????????? | | ????????????????# + #?????????? | | ????????????????#!] # #?????????? | | ????????????????#! # #?????????? | | ????????????????#! # #?????????? | | ????????????????######## #?????????? | | ?????????????????# ??# #?????????? | | ?????????????????# " ?# #?????????? | | ?????????????????# """?# #?????????? | | ?????????????????# """ # ###???????? | | ?????????????????# """ # #???????? | | ?????????????????# "" + ######### | | ?????????????????# """ # # # | | ??????????######## "" # # # | | ??????????# # """?# # """" # | | ??????????# # " ?# # """" # | | ?????#????# """ # ??# # """" # | | ?????# ???# R" # ??# # # | | ?????# ??# """ ###???# # """" # | | ????## ## #?????# # """" # | | ????# ###+####?????# # """" # | +----------------------------------------------------+ Best States ------------- Heat Dissipation 42 Energy Generation 10 Energy Capacity 250 Matter Stores 300 Matter Capacity 300 Sight Range 18 Robot Scan Range 14 Terrain Scan Density 10 Weapon Shielding 33 Evasion (%) 44 Item Schematics ----------------- None Robot Schematics ------------------ None Fabricated ------------ Nothing Alien Tech Used ----------------- None Achievements -------------- None Challenges ------------ None Game ------ Seed CorruptionMachineKit Manual? 0 Play Time 00:10:39 Cumulative 11.3 hours Start 2024.09.13 @ 18:51:11 End 2024.09.13 @ 18:59:23 Sessions 1 Manual Loads 0 Difficulty Rogue Special Mode None Game No. 48 Rogue 48 Adventurer 0 Explorer 0 Win Type - Total 0 Types 0/0/0/0/0/0/0/0/0 Lore% 9 Gallery% 17 Achievement% 13 Wizard Run 0 Options --------- Layout 2 ASCII 0 Keyboard 0 Movement Mouse Keybinds 0 Fullscreen 1 Font 16/SmallcapsGlow Map View 55x47 Zoom Use 0% Tactical HUD 1 Map Filters NONE Filters NONE Steam 1 RUN: fdcc1df2-5432-40b5-bb91-5ab1d75c5a8a